fUST/lending_fUST_20250824
["ID","MTS","AMOUNT","RATE_DAILY","PERIOD"]
[381042055,1755969058603,-68289.40965206,0.000359,2]
[381042056,1755969101984,236.24721876,0.000199,2]
[381042057,1755969102494,236.24721856,0.00021627,2]
[381042058,1755969103005,236.24721856,0.00023353,2]
[381042059,1755969135517,-192.83933168,0.0002508,2]
[381042060,1755969147186,160.0,0.0002,7]
[381042061,1755969165474,-43.40788688,0.0002508,2]
[381042062,1755969165496,-229.11282378,0.00025173,2]
[381042063,1755969174386,3594.79166675,0.00024834,2]
[381042064,1755969174407,10000.01,0.00024834,2]
[381042065,1755969188388,-226.10928934,0.00024833,2]
[381042066,1755969256072,-257.67604671,0.00024824,2]
[381042067,1755969268715,216.55995055,0.000199,2]
[381042068,1755969268757,216.55995034,0.00023353,2]
[381042069,1755969269092,216.55995034,0.00021627,2]
[381042070,1755969278311,-331.22379702,0.00024824,2]
[381042071,1755969323015,7655.0366268,0.00023867,2]
[381042072,1755969354872,163.425825,0.00013699,2]
[381042073,1755969355397,163.425825,0.00021918,2]
[381042074,1755969378158,151.0,0.000235,6]
[381042075,1755969378509,151.0,0.00021,3]
[381042076,1755969378826,151.0,0.000185,2]
[381042077,1755969379196,151.0,0.00016,2]
[381042078,1755969379660,151.0,0.000135,2]
[381042079,1755969417185,613.44187197,0.00023383,10]
[381042080,1755969417206,294.37808918,0.00023383,10]
[381042081,1755969417243,211.59845137,0.00023616,10]
[381042082,1755969421028,-204.18532328,0.00024089,2]
[381042083,1755969435288,342.7874804,0.000199,2]
[381042084,1755969435530,342.78748038,0.00023353,2]
[381042085,1755969436114,342.78748038,0.00021627,2]
[381042086,1755969529184,1000.0,0.00023803,2]
[381042087,1755969601995,308.5087324,0.000199,2]
[381042088,1755969602173,308.50873234,0.00023353,2]
[381042089,1755969602444,308.50873234,0.00021627,2]
[381042090,1755969645551,-197.39336864,0.00024089,2]
[381042091,1755969645573,-22.35867708,0.00024731,2]
[381042092,1755969647891,-228.062631,0.00024731,2]
[381042093,1755969650969,-328.90519694,0.00024731,2]
[381042094,1755969676745,-504.14918203,0.000241,2]
[381042095,1755969676776,-328.90519694,0.00024484,2]
[381042096,1755969676810,-1886.2764618,0.00024731,2]
[381042097,1755969676841,-1819.16477678,0.00024773,2]
[381042098,1755969677094,-923.0187649,0.00024773,2]
[381042099,1755969677122,-294.44992187,0.00024773,2]
[381042100,1755969677150,-240.02769707,0.00024773,2]
[381042101,1755969677178,-300.0,0.00024779,2]
[381042102,1755969677207,-2742.18354167,0.0002478,2]
[381042103,1755969677456,-1200.0,0.00024786,2]
[381042104,1755969677491,-2742.18354167,0.00024787,2]
[381042105,1755969677720,-2742.18354167,0.00024793,2]
[381042106,1755969677749,-1773.45937499,0.000248,2]
[381042107,1755969677891,-968.72416668,0.000248,2]
[381042108,1755969703938,546.997,0.00023507,4]
[381042109,1755969704048,172.43299732,0.00023507,4]
[381042110,1755969716724,-1200.0,0.00024799,2]
[381042111,1755969716928,-351.3146344,0.000248,2]
[381042112,1755969717127,-10000.01,0.000248,2]
[381042113,1755969717302,-10000.01,0.000248,2]
[381042114,1755969717463,-10000.01,0.000248,2]
[381042115,1755969768505,289.47022016,0.000199,2]
[381042116,1755969768668,289.47022003,0.00023353,2]
[381042117,1755969768791,289.47022003,0.00021627,2]
[381042118,1755969806306,1909.344797,0.00023808,2]
[381042119,1755969853046,-807.38329996,0.00024773,2]
[381042120,1755969853080,-807.38329994,0.0002478,2]
[381042121,1755969853113,-807.38329994,0.00024787,2]
[381042122,1755969853147,-807.38329994,0.00024793,2]
[381042123,1755969853176,-300.0,0.00024799,2]
[381042124,1755969853204,-807.38329994,0.000248,2]
[381042125,1755969853231,-654.00700056,0.00024824,3]
[381042126,1755969853382,-18.16299944,0.00024824,3]
[381042127,1755969853410,-336.08,0.00024824,3]
[381042128,1755969853438,-168.04,0.00024824,3]
[381042129,1755969853467,-504.15,0.00024824,3]
[381042130,1755969853567,-221.46819388,0.00024824,2]
[381042131,1755969853746,-4966.08334946,0.00024824,2]
[381042132,1755969853790,-4590.99026278,0.00024824,2]
[381042133,1755969853800,-1272.66,0.00024833,2]
[381042134,1755969853810,-500.0,0.00024833,2]
[381042135,1755969853821,-462.64880358,0.00024833,2]
[381042136,1755969853831,-2952.24273976,0.00024834,2]
[381042137,1755969853965,-10000.01,0.00024834,2]
[381042138,1755969854027,-10000.01,0.00024834,2]
[381042139,1755969866919,-10000.01,0.00024834,2]
[381042140,1755969867109,-10000.01,0.00024834,2]
[381042141,1755969867275,-10000.01,0.00024834,2]
[381042142,1755969867446,-10000.01,0.00024834,2]
[381042143,1755969867807,-10000.01,0.00024834,2]
[381042144,1755969867970,-10000.01,0.00024834,2]
[381042145,1755969868485,-10000.01,0.00024834,2]
[381042146,1755969868498,-10000.01,0.00024834,2]
[381042147,1755969868530,-10000.01,0.00024834,2]
[381042148,1755969868693,-10000.01,0.00024834,2]
[381042149,1755969886912,-500.0,0.00024833,2]
[381042150,1755969886944,-500.0,0.00024833,2]
[381042151,1755969886975,-500.0,0.00024833,2]
[381042152,1755969887115,-500.0,0.00024833,2]
[381042153,1755969887146,-500.0,0.00024833,2]
[381042154,1755969887177,-607.92826136,0.00024833,2]
[381042155,1755969887208,-500.0,0.00024833,2]
[381042156,1755969887239,-500.0,0.00024833,2]
[381042157,1755969887271,-500.0,0.00024833,2]
[381042158,1755969887303,-284.15347728,0.00024833,2]
[381042159,1755969887402,-215.84652272,0.00024833,2]
[381042160,1755969887435,-279.76087336,0.00024833,2]
[381042161,1755969887468,-245.08416597,0.00024833,2]
[381042162,1755969887497,-500.0,0.00024833,2]
[381042163,1755969887527,-501.52529644,0.00024833,2]
[381042164,1755969887832,-245.08416597,0.00024834,2]
[381042165,1755969887847,-6515.57628302,0.00024834,2]
[381042166,1755969887883,-10000.01,0.00024834,2]
[381042167,1755969887905,-10000.01,0.00024834,2]
[381042168,1755969887949,-10000.01,0.00024834,2]
[381042169,1755969888003,-10000.01,0.00024834,2]
[381042170,1755969888189,-10000.01,0.00024834,2]
[381042171,1755969888328,-10000.01,0.00024834,2]
[381042172,1755969894976,-10000.01,0.00024834,2]
[381042173,1755969895093,-10000.01,0.00024834,2]
[381042174,1755969895260,-10000.01,0.00024834,2]
[381042175,1755969895426,-10000.01,0.00024834,2]
[381042176,1755969895632,-4954.4119821,0.00024834,2]
[381042177,1755969895655,-91.1860358,0.00024834,2]
[381042178,1755969896028,-500.0,0.00024873,2]
[381042179,1755969896055,-500.0,0.00024873,2]
[381042180,1755969896082,-500.0,0.00024873,2]
[381042181,1755969896109,-501.64261294,0.00024873,2]
[381042182,1755969896137,-500.0,0.00024873,2]
[381042183,1755969896163,-500.0,0.00024873,2]
[381042184,1755969896192,-500.0,0.00024873,2]
[381042185,1755969896219,-372.2786102,0.00024873,2]
[381042186,1755969896246,-500.0,0.00024873,2]
[381042187,1755969896272,-500.0,0.00024873,2]
[381042188,1755969896596,-501.26524356,0.00024873,2]
[381042189,1755969896625,-486.20982051,0.00024873,2]
[381042190,1755969896654,-525.92403447,0.00024873,2]
[381042191,1755969896682,-334.04666069,0.00024873,2]
[381042192,1755969896712,-500.92954421,0.00024873,2]
[381042193,1755969896739,-167.85299103,0.00024873,2]
[381042194,1755969896767,-500.0,0.00024873,2]
[381042195,1755969896795,-500.0,0.00024873,2]
[381042196,1755969896822,-500.85274947,0.00024873,2]
[381042197,1755969896849,-490.0,0.00024873,2]
[381042198,1755969896877,-255.19369473,0.00024873,2]
[381042199,1755969897246,-255.19369473,0.00024873,2]
[381042200,1755969897270,-244.80630527,0.00024873,2]
[381042201,1755969897279,-230.65421739,0.00024873,2]
[381042202,1755969914660,-1192.33624747,0.00024863,2]
[381042203,1755969914689,-300.0,0.00024872,2]
[381042204,1755969914718,-300.0,0.00024872,2]
[381042205,1755969914746,-300.0,0.00024872,2]
[381042206,1755969914775,-1200.0,0.00024872,2]
[381042207,1755969914926,-300.0,0.00024872,2]
[381042208,1755969914953,-259.06723321,0.00024873,2]
[381042209,1755969914983,-500.0,0.00024873,2]
[381042210,1755969915011,-500.0,0.00024873,2]
[381042211,1755969915158,-500.0,0.00024873,2]
[381042212,1755969915189,-475.0661966,0.00024873,2]
[381042213,1755969915221,-500.0,0.00024873,2]
[381042214,1755969915251,-500.0,0.00024873,2]
[381042215,1755969915281,-500.0,0.00024873,2]
[381042216,1755969915311,-321.71335699,0.00024873,2]
[381042217,1755969915341,-500.0,0.00024873,2]
[381042218,1755969915371,-500.0,0.00024873,2]
[381042219,1755969915722,-322.13684204,0.00024873,2]
[381042220,1755969915738,-2406.45089282,0.00024873,2]
[381042221,1755969915763,-10000.01,0.00024873,2]
[381042222,1755969915790,-10000.01,0.00024873,2]
[381042223,1755969915833,-10000.01,0.00024873,2]
[381042224,1755969915862,-10000.01,0.00024873,2]
[381042226,1755969921854,-2728.63773486,0.00024873,2]
[381042227,1755969921880,-4542.73453028,0.00024873,2]
[381042228,1755969922043,-10000.01,0.0002489,2]
[381042229,1755969922214,-10000.01,0.0002489,2]
[381042230,1755969922404,-2001.6990638,0.0002489,2]
[381042231,1755969922432,-500.0,0.00024899,2]
[381042232,1755969922461,-407.31400356,0.00024899,2]
[381042233,1755969922492,-185.11980249,0.00024899,2]
[381042234,1755969922521,-155.87,0.000249,7]
[381042235,1755969922550,-1045.02,0.000249,7]
[381042236,1755969922661,-1409.9642603,0.000249,2]
[381042237,1755969922740,-10000.01,0.000249,2]
[381042238,1755969932513,5000.0,0.00024834,2]
[381042239,1755969935909,272.33555911,0.000199,2]
[381042240,1755969936064,272.33555895,0.00023353,2]
[381042241,1755969936098,272.33555895,0.00021627,2]
[381042242,1755969936950,-2038.6357397,0.000249,2]
[381042243,1755969936994,-5922.7385206,0.000249,2]
[381042244,1755969937474,-10000.01,0.000249,2]
[381042245,1755969937506,-10000.01,0.000249,2]
[381042246,1755969937668,-10000.01,0.000249,2]
[381042247,1755969937817,-10000.01,0.000249,2]
[381042248,1755969938426,1722.37561169,0.000248,2]
[381042249,1755969944820,-123008.755909,0.000249,2]
[381042250,1755969944833,-26991.244091,0.000249,2]
[381042251,1755969946040,-215.79911338,0.000249,2]
[381042252,1755969947444,5000.0,0.00024834,2]
[381042253,1755969947612,-249.29737897,0.000249,2]
[381042254,1755969949257,-276.95535707,0.000249,2]
[381042255,1755969951541,-214.42440306,0.000249,2]
[381042256,1755969951611,-10000.01,0.000249,2]
[381042257,1755969951815,-10000.01,0.000249,2]
[381042258,1755969953366,-152.12466072,0.000249,2]
[381042259,1755969954953,-154.68283585,0.000249,2]
[381042260,1755969963170,5000.0,0.00024834,2]
[381042261,1755969966984,-10000.01,0.000249,2]
[381042262,1755969967164,-10000.01,0.000249,2]
[381042263,1755969978560,-177.9260266,0.000249,2]
[381042264,1755969978766,5000.0,0.00024834,2]
[381042265,1755969981969,-176.70759056,0.000249,2]
[381042266,1755969984087,-176.60553854,0.000249,2]
[381042267,1755969985572,-172.62340556,0.000249,2]
[381042268,1755969986969,-10000.01,0.000249,2]
[381042269,1755969987330,-10000.01,0.000249,2]
[381042270,1755969988343,-170.5846242,0.000249,2]
[381042271,1755969990270,-481.59239164,0.000249,2]
[381042272,1755969991959,-172.62340555,0.000249,2]
[381042273,1755969993744,5000.0,0.00024834,2]
[381042274,1755969994081,-197.48672027,0.000249,2]
[381042275,1755969996170,-345.32536237,0.00024899,2]
[381042276,1755969996194,-15.7651112,0.00024899,2]
[381042277,1755969998163,-237.54165251,0.00024899,2]
[381042278,1755969998291,-45.16439668,0.000249,2]
[381042279,1755970001013,-10000.01,0.000249,2]
[381042280,1755970001226,-10000.01,0.000249,2]
[381042281,1755970001412,-301.58456872,0.000249,2]
[381042282,1755970004765,-260.76842805,0.000249,2]
[381042283,1755970006889,-348.29738527,0.00024899,2]
[381042284,1755970009893,5000.0,0.00024834,2]
[381042285,1755970009998,-210.87415587,0.00024899,2]
[381042286,1755970012470,-522.67198023,0.00024899,2]
[381042287,1755970014600,-118.15647863,0.00024899,2]
[381042288,1755970014622,-51.16983259,0.000249,2]
[381042289,1755970014933,-10000.01,0.000249,2]
[381042290,1755970015120,-10000.01,0.000249,2]
[381042291,1755970017068,-173.17619682,0.000249,2]
[381042292,1755970018831,-249.95504812,0.000249,2]
[381042293,1755970023973,-191.26424083,0.00024895,2]
[381042294,1755970024548,-2834.21996777,0.00024895,2]
[381042295,1755970024581,-80143.07420645,0.000249,2]
[381042296,1755970024618,-3612.94,0.000249,7]
[381042297,1755970024650,-155.87,0.000249,7]
[381042298,1755970025653,-160.99966894,0.00024973,2]
[381042299,1755970027021,-339.00033106,0.00024973,2]
[381042300,1755970027050,-500.0,0.00024973,2]
[381042301,1755970027178,-500.0,0.00024973,2]
[381042302,1755970027206,-500.0,0.00024973,2]
[381042303,1755970027233,-500.0,0.00024973,2]
[381042304,1755970027259,-245.44409642,0.00024973,2]
[381042305,1755970027286,-362.13070189,0.00024973,2]
[381042306,1755970027313,-500.0,0.00024973,2]
[381042307,1755970027339,-500.0,0.00024973,2]
[381042308,1755970027368,-200.0,0.00024973,2]
[381042309,1755970027396,-851.68974126,0.00024978,2]
[381042310,1755970027486,-3.48025874,0.00024978,2]
[381042311,1755970027635,-3.48025874,0.0002499,2]
[381042312,1755970027656,-9993.04948252,0.0002499,2]
[381042313,1755970027760,-173.48406566,0.0002499,2]
[381042314,1755970029150,-248.65441791,0.0002499,2]
[381042315,1755970030722,1277.48,0.00024833,2]
[381042316,1755970030807,-172.62340554,0.0002499,2]
[381042318,1755970032453,-509.37384048,0.0002499,2]
[381042319,1755970034626,-369.5443038,0.0002499,2]
[381042320,1755970036625,-205.30750649,0.0002499,2]
[381042321,1755970036970,233.39067577,0.00024873,2]
[381042322,1755970038752,-211.20282395,0.0002499,2]
[381042323,1755970039369,213.34377725,0.00024899,2]
[381042324,1755970040898,-227.69976139,0.0002499,2]
[381042325,1755970042453,369.66903738,0.00024899,2]
[381042326,1755970043043,-195.52538931,0.0002498,2]
[381042327,1755970045214,-37.86528646,0.0002498,2]
[381042328,1755970045235,-139.00376767,0.0002499,2]
[381042329,1755970046562,-217.00623575,0.0002499,2]
[381042330,1755970047043,-10000.01,0.0002499,2]
[381042331,1755970047249,-3774.8328445,0.0002499,2]
[381042332,1755970047272,-2450.344311,0.0002499,2]
[381042333,1755970048512,-390.76187952,0.00025,2]
[381042334,1755970050090,-158.57424118,0.00025,2]
[381042335,1755970052115,-167.0124152,0.00025,2]
[381042337,1755970055513,-283.6514641,0.00025,2]
[381042338,1755970055534,-94.56588925,0.00025063,2]
[381042339,1755970056779,-216.1680267,0.00025063,2]
[381042340,1755970058698,-165.89224048,0.00025063,2]
[381042341,1755970061716,-165.0409466,0.00025063,2]
[381042342,1755970066597,-223.52642444,0.00025063,2]
[381042343,1755970069111,-205.36770932,0.00025063,2]
[381042344,1755970072258,5085.1157243,0.00018,2]
[381042345,1755970076157,-4914.8942757,0.00025063,2]
[381042346,1755970084961,2157.40259595,0.00024973,2]
[381042347,1755970097206,-1317.65280329,0.00025063,2]
[381042348,1755970097237,-5207.30179747,0.00025063,2]
[381042349,1755970101042,-2157.40259595,0.00025063,2]
[381042350,1755970101071,-392.09,0.00025063,3]
[381042351,1755970101099,-196.05,0.00025063,3]
[381042352,1755970101127,-588.16,0.00025063,3]
[381042353,1755970101156,-579.58386174,0.00025072,2]
[381042354,1755970101183,-500.0,0.00025073,2]
[381042355,1755970101210,-500.0,0.00025073,2]
[381042356,1755970101363,-173.43708462,0.00025073,2]
[381042357,1755970102158,245.1020032,0.000199,2]
[381042358,1755970102363,245.10200305,0.00023353,2]
[381042359,1755970102620,245.10200305,0.00021627,2]
[381042360,1755970107081,-326.56291538,0.00025073,2]
[381042361,1755970107109,-500.0,0.00025073,2]
[381042362,1755970107136,-502.57071743,0.00025073,2]
[381042363,1755970107164,-500.0,0.00025073,2]
[381042364,1755970107191,-500.0,0.00025073,2]
[381042365,1755970107218,-500.0,0.00025073,2]
[381042366,1755970107245,-500.0,0.00025073,2]
[381042367,1755970107273,-500.86406171,0.00025073,2]
[381042369,1755970107301,-500.0,0.00025073,2]
[381042372,1755970107328,-500.0,0.00025073,2]
[381042374,1755970107355,-154.07229641,0.00025073,2]
[381042378,1755970110406,-31.87001814,0.00025073,2]
[381042379,1755970110432,-605.76764902,0.00025073,2]
[381042380,1755970110459,-500.0,0.00025073,2]
[381042381,1755970110489,-500.0,0.00025073,2]
[381042382,1755970110515,-500.0,0.00025073,2]
[381042383,1755970110541,-500.0,0.00025073,2]
[381042384,1755970110647,-500.0,0.00025073,2]
[381042385,1755970110695,-500.0,0.00025073,2]
[381042386,1755970110723,-500.0,0.00025073,2]
[381042387,1755970110751,-500.0,0.00025073,2]
[381042388,1755970111214,-21.29867452,0.00025073,2]
[381042389,1755970116580,644.71635052,0.00024973,2]
[381042390,1755970118701,1377.46931993,0.00025,2]
[381042391,1755970118723,5886.66662118,0.00025,2]
[381042392,1755970118969,4113.34337882,0.00024143,2]
[381042393,1755970118995,27565.73827661,0.00024143,2]
[381042394,1755970119021,12460.6177113,0.00024143,2]
[381042395,1755970122499,511.5277765,0.00028739,120]
[381042396,1755970126197,3042.95936667,0.000215,2]
[381042397,1755970126219,109.97297339,0.000215,2]
[381042398,1755970127879,42562.86710871,0.00028739,30]
[381042399,1755970128089,963.21834,0.00028739,120]
[381042400,1755970135145,-4824.89198949,0.00024143,2]
[381042401,1755970139192,-10000.01,0.00024143,2]
[381042402,1755970139501,-10000.01,0.00024143,2]
[381042403,1755970143715,300.0,0.00024142,2]
[381042404,1755970154777,-10000.01,0.00024143,2]
[381042405,1755970154961,-10000.01,0.00024143,2]
[381042406,1755970160139,-40247.2605402,0.00024143,2]
[381042407,1755970167167,-10000.01,0.00024143,2]
[381042408,1755970167333,-10000.01,0.00024143,2]
[381042409,1755970171951,-10000.01,0.00024143,2]
[381042410,1755970172170,-10000.01,0.00024143,2]
[381042411,1755970180760,-10000.01,0.00024143,2]
[381042412,1755970180972,-10000.01,0.00024143,2]
[381042413,1755970190179,27062.52598749,0.00024,2]
[381042414,1755970197216,-606.15442762,0.00024143,2]
[381042415,1755970197239,-8787.70114476,0.00024143,2]
[381042416,1755970204855,8708.9094206,0.00024279,2]
[381042445,1755970231742,-471.85943454,0.00024734,2]
[381042446,1755970231752,-1088.71,0.0002483,2]
[381042447,1755970231761,-300.0,0.00024971,2]
[381042448,1755970231770,-253.0,0.00024971,2]
[381042449,1755970231779,-1200.0,0.00024971,2]
[381042450,1755970231788,-10463.59332964,0.00024972,2]
[381042451,1755970231797,-154.92006465,0.00024973,2]
[381042452,1755970231806,-5000.0,0.00025,2]
[381042453,1755970231815,-150.999999,0.00025,5]
[381042454,1755970231824,-37433.91717216,0.00025063,2]
[381042455,1755970231839,-12550.05562647,0.00025063,2]
[381042483,1755970237659,-341344.60786637,0.00025063,2]
[381042485,1755970237668,-500.0,0.00025073,2]
[381042492,1755970237773,-500.0,0.00025073,2]
[381042493,1755970237783,-500.0,0.00025073,2]
[381042494,1755970237792,-500.0,0.00025073,2]
[381042495,1755970237802,-516.62234661,0.00025073,2]
[381042496,1755970237811,-500.0,0.00025073,2]
[381042497,1755970237820,-500.0,0.00025073,2]
[381042498,1755970237829,-500.0,0.00025073,2]
[381042499,1755970237838,-500.0,0.00025073,2]
[381042500,1755970237848,-261624.10696867,0.00025073,2]
[381042501,1755970237858,-50000.0,0.00025073,2]
[381042502,1755970237867,-160.15851129,0.00025073,2]
[381042503,1755970237876,-245.10200305,0.0002508,2]
[381042504,1755970237886,-1288.86,0.000251,7]
[381042505,1755970237895,-3251.64,0.000251,7]
[381042506,1755970237904,-155.87,0.000251,7]
[381042507,1755970237914,-22919.56,0.000251,2]
[381042508,1755970237923,-1088.71,0.00025104,3]
[381042509,1755970237932,-20645.41994948,0.00025132,2]
[381042510,1755970237941,-160.0,0.00025169,2]
[381042511,1755970237950,-160.0,0.00025169,2]
[381042512,1755970237959,-509.13413287,0.00025173,2]
[381042513,1755970237968,-500.0,0.00025173,2]
[381042514,1755970237978,-500.0,0.00025173,2]
[381042515,1755970237987,-500.0,0.00025173,2]
[381042516,1755970237996,-500.0,0.00025173,2]
[381042517,1755970238007,-500.0,0.00025173,2]
[381042518,1755970238016,-500.0,0.00025173,2]
[381042519,1755970238025,-644.71635052,0.00025292,2]
[381042520,1755970238035,-270.0,0.00025371,2]
[381042521,1755970238045,-1088.71,0.00025378,4]
[381042522,1755970238054,-151.0,0.000254,18]
[381042523,1755970238064,-319.10514258,0.00025421,2]
[381042524,1755970238074,-1000.0,0.00025421,2]
[381042525,1755970238083,-1000.0,0.00025421,2]
[381042526,1755970238092,-190.0,0.00025446,2]
[381042527,1755970238101,-261.23623537,0.00025489,2]
[381042528,1755970238110,-1000.0,0.00025521,2]
[381042529,1755970238119,-285.21755169,0.00025521,2]
[381042530,1755970238129,-500.0,0.00025526,4]
[381042531,1755970238138,-505.42892045,0.00025595,2]
[381042532,1755970238147,-644.71635052,0.00025611,2]
[381042533,1755970238156,-1000.0,0.00025621,2]
[381042534,1755970238165,-1000.0,0.00025621,2]
[381042535,1755970238174,-1000.0,0.00025621,2]
[381042536,1755970238183,-1000.0,0.00025621,2]
[381042537,1755970238192,-799.2959534,0.00025621,2]
[381042538,1755970238201,-1087.26472005,0.00025621,2]
[381042539,1755970238211,-1000.0,0.00025621,2]
[381042540,1755970238219,-1000.0,0.00025621,2]
[381042541,1755970238229,-492.12546401,0.00025621,2]
[381042542,1755970238238,-1000.0,0.00025621,2]
[381042543,1755970238247,-501.14541372,0.00025621,2]
[381042544,1755970238256,-500.0,0.00025621,2]
[381042545,1755970238264,-1000.0,0.00025621,2]
[381042546,1755970238274,-1000.0,0.00025621,2]
[381042547,1755970238283,-1000.0,0.00025621,2]
[381042548,1755970238292,-588.33278505,0.00025621,2]
[381042549,1755970238301,-500.0,0.00025621,2]
[381042550,1755970238311,-1000.0,0.00025621,2]
[381042551,1755970238320,-1000.0,0.00025621,2]
[381042552,1755970238329,-1000.0,0.00025621,2]
[381042553,1755970238338,-1943.2203537,0.00025642,2]
[381042554,1755970238347,-1088.71,0.00025652,5]
[381042555,1755970238357,-1000.0,0.00025721,2]
[381042556,1755970238366,-1000.0,0.00025721,2]
[381042557,1755970238375,-1000.0,0.00025721,2]
[381042558,1755970238384,-1000.0,0.00025721,2]
[381042559,1755970238393,-500.0,0.000258,4]
[381042560,1755970238402,-1088.71,0.00025926,6]
[381042561,1755970238411,-644.71635052,0.00025929,2]
[381042562,1755970238421,-433.5910687,0.00025946,2]
[381042563,1755970238430,-150.31,0.00025961,7]
[381042564,1755970238439,-1284.8694728,0.00025968,2]
[381042565,1755970238448,-496.66632198,0.00025968,2]
[381042566,1755970238456,-500.0,0.00025973,2]
[381042567,1755970238464,-500.0,0.00025973,2]
[381042568,1755970238473,-574.85528209,0.00025973,2]
[381042569,1755970238481,-162.00307087,0.00025973,2]
[381042570,1755970238490,-500.0,0.00025973,2]
[381042571,1755970238500,-500.0,0.00025973,2]
[381042572,1755970238509,-500.0,0.00025973,2]
[381042573,1755970238518,-500.0,0.00025973,2]
[381042574,1755970238527,-500.0,0.00025973,2]
[381042575,1755970238536,-500.53986832,0.00025973,2]
[381042576,1755970238545,-500.0,0.00025973,2]
[381042577,1755970238554,-500.0,0.00025973,2]
[381042578,1755970238564,-507.2697404,0.00025973,2]
[381042579,1755970238573,-500.0,0.00025973,2]
[381042580,1755970238582,-151.0,0.00026,17]
[381042581,1755970238590,-3157.2103377,0.00026,2]
[381042582,1755970238598,-151.0,0.00026,11]
[381042583,1755970238608,-33946.32683419,0.00026,7]
[381042584,1755970238617,-108000.0000017,0.00026,30]
[381042585,1755970238626,-215.94678008,0.00026,7]
[381042586,1755970238633,-215.94678008,0.00026,30]
[381042587,1755970238641,-173.21609447,0.00026045,2]
[381042588,1755970238649,-150.31,0.00026061,7]
[381042589,1755970238661,-1500.0,0.00026068,2]
[381042590,1755970238671,-500.0,0.00026074,4]
[381042591,1755970238680,-217.0334113,0.00026077,2]
[381042592,1755970238689,-417.15472785,0.00026077,2]
[381042593,1755970238699,-12695.67094824,0.00026122,2]
[381042594,1755970238708,-160.0,0.0002613,2]
[381042595,1755970238718,-2069.2,0.00026145,2]
[381042596,1755970238729,-191.38956245,0.0002616,2]
[381042597,1755970238738,-150.31,0.00026161,7]
[381042598,1755970238747,-1500.0,0.00026168,2]
[381042599,1755970238756,-1500.0,0.00026168,2]
[381042600,1755970238766,-1500.0,0.00026168,2]
[381042601,1755970238775,-1500.0,0.00026168,2]
[381042602,1755970238784,-886.00937053,0.00026168,2]
[381042603,1755970238794,-200.39317981,0.00026168,2]
[381042604,1755970238803,-500.0,0.00026168,2]
[381042605,1755970238813,-1500.0,0.00026168,2]
[381042606,1755970238823,-1500.0,0.00026168,2]
[381042607,1755970238832,-1500.0,0.00026168,2]
[381042608,1755970238841,-1500.0,0.00026168,2]
[381042609,1755970238851,-500.0,0.00026173,2]
[381042610,1755970238860,-500.0,0.00026173,2]
[381042611,1755970238869,-500.0,0.00026173,2]
[381042612,1755970238879,-500.0,0.00026173,2]
[381042613,1755970238888,-500.0,0.00026173,2]
[381042614,1755970238898,-500.74387212,0.00026173,2]
[381042615,1755970238907,-500.0,0.00026173,2]
[381042616,1755970238916,-500.0,0.00026173,2]
[381042617,1755970238926,-500.0,0.00026173,2]
[381042618,1755970238935,-500.0,0.00026173,2]
[381042619,1755970239022,-500.0,0.00026173,2]
[381042620,1755970239033,-500.0,0.00026173,2]
[381042621,1755970239042,-500.0,0.00026173,2]
[381042622,1755970239051,-500.0,0.00026173,2]
[381042623,1755970239061,-500.0,0.00026173,2]
[381042624,1755970239070,-606.74996955,0.00026173,2]
[381042625,1755970239081,-502.46079315,0.00026173,2]
[381042626,1755970239090,-500.0,0.00026173,2]